[Event "*** Titled Tuesday Blitz"]
[Site "Chess.com"]
[Date "2021.04.20"]
[Round "4"]
[White "Sashadav97"]
[Black "chessdiamant"]
[Result "1-0"]
[WhiteElo "2611"]
[BlackElo "2337"]
[TimeControl "180+1"]
[EndTime "10:34:39 PDT"]
[Termination "Sashadav97 won by resignation"]

1. d4 {[%clk 0:03:00.9]} 1... Nf6 {[%clk 0:02:59.1]} 2. c4 {[%clk 0:02:58.5]}
2... g6 {[%clk 0:02:58.9]} 3. Nc3 {[%clk 0:02:58.9]} 3... Bg7 {[%clk 0:02:58.1]}
4. e4 {[%clk 0:02:59.1]} 4... d6 {[%clk 0:02:57.3]} 5. Be2 {[%clk 0:02:59.7]}
5... O-O {[%clk 0:02:55.3]} 6. Be3 {[%clk 0:02:59.8]} 6... Nbd7 {[%clk
0:02:54.1]} 7. g4 {[%clk 0:02:52.7]} 7... e5 {[%clk 0:02:46.2]} 8. d5 {[%clk
0:02:52.1]} 8... Nc5 {[%clk 0:02:40]} 9. f3 {[%clk 0:02:51.1]} 9... a5 {[%clk
0:02:36.8]} 10. h4 {[%clk 0:02:49.8]} 10... Nfd7 {[%clk 0:02:33.9]} 11. h5
{[%clk 0:02:46.7]} 11... f5 {[%clk 0:02:30.4]} 12. hxg6 {[%clk 0:02:45.8]} 12...
hxg6 {[%clk 0:02:30.2]} 13. gxf5 {[%clk 0:02:45.6]} 13... gxf5 {[%clk
0:02:31.1]} 14. Qd2 {[%clk 0:02:43.4]} 14... f4 {[%clk 0:02:30.8]} 15. Bf2
{[%clk 0:02:42.4]} 15... Qg5 {[%clk 0:02:26.6]} 16. Bf1 {[%clk 0:02:32.8]} 16...
Nf6 {[%clk 0:02:19.2]} 17. O-O-O {[%clk 0:02:28.4]} 17... Bd7 {[%clk 0:02:14.4]}
18. Bh3 {[%clk 0:02:25.9]} 18... Qh5 {[%clk 0:01:57.5]} 19. Be6+ {[%clk
0:02:17.5]} 19... Bxe6 {[%clk 0:01:49.1]} 20. Rxh5 {[%clk 0:02:17.6]} 20... Nxh5
{[%clk 0:01:50]} 21. Bxc5 {[%clk 0:02:14.4]} 21... dxc5 {[%clk 0:01:46]} 22.
dxe6 {[%clk 0:02:14.6]} 22... Bf6 {[%clk 0:01:35.4]} 23. Nd5 {[%clk 0:02:08.8]}
23... Kg7 {[%clk 0:01:20.5]} 24. e7 {[%clk 0:01:58.2]} 24... Rfe8 {[%clk
0:01:16.7]} 25. Nxc7 {[%clk 0:01:57.8]} 1-0

[Event "*** Titled Tuesday Blitz"]
[Site "Chess.com"]
[Date "2021.04.20"]
[Round "4"]
[White "Omk124"]
[Black "losersgame"]
[Result "1-0"]
[WhiteElo "2557"]
[BlackElo "2341"]
[TimeControl "180+1"]
[EndTime "10:34:44 PDT"]
[Termination "Omk124 won by resignation"]

1. e4 {[%clk 0:03:00.9]} 1... e5 {[%clk 0:02:59.2]} 2. Nf3 {[%clk 0:02:57.5]}
2... Nc6 {[%clk 0:02:59.2]} 3. Bc4 {[%clk 0:02:57]} 3... g6 {[%clk 0:02:58.7]}
4. O-O {[%clk 0:02:55.9]} 4... Bg7 {[%clk 0:02:58.3]} 5. c3 {[%clk 0:02:55.8]}
5... Nge7 {[%clk 0:02:39.9]} 6. d4 {[%clk 0:02:51.4]} 6... d6 {[%clk 0:02:33]}
7. h3 {[%clk 0:02:38.8]} 7... O-O {[%clk 0:02:26.8]} 8. Re1 {[%clk 0:02:36.7]}
8... h6 {[%clk 0:02:19.1]} 9. Be3 {[%clk 0:02:22.4]} 9... Kh7 {[%clk 0:02:17.2]}
10. Nbd2 {[%clk 0:02:22.1]} 10... exd4 {[%clk 0:01:36.9]} 11. Nxd4 {[%clk
0:02:15.3]} 11... Nxd4 {[%clk 0:01:36.2]} 12. Bxd4 {[%clk 0:02:14.8]} 12... Bxd4
{[%clk 0:01:36.2]} 13. cxd4 {[%clk 0:02:15.7]} 13... d5 {[%clk 0:01:36.8]} 14.
exd5 {[%clk 0:02:13]} 14... Nxd5 {[%clk 0:01:37]} 15. Qf3 {[%clk 0:02:12.1]}
15... Be6 {[%clk 0:01:36]} 16. Ne4 {[%clk 0:02:12.4]} 16... Kg7 {[%clk
0:00:33.8]} 17. Nc5 {[%clk 0:02:10]} 17... Qf6 {[%clk 0:00:33.8]} 18. Bxd5
{[%clk 0:02:08.4]} 1-0

[Event "*** Titled Tuesday Blitz"]
[Site "Chess.com"]
[Date "2021.04.20"]
[Round "4"]
[White "MVM2008"]
[Black "vanyakuba"]
[Result "0-1"]
[WhiteElo "2148"]
[BlackElo "2398"]
[TimeControl "180+1"]
[EndTime "10:34:47 PDT"]
[Termination "vanyakuba won by resignation"]

1. e4 {[%clk 0:03:00.9]} 1... d5 {[%clk 0:02:59.9]} 2. exd5 {[%clk 0:03:01]}
2... Qxd5 {[%clk 0:03:00.8]} 3. Nc3 {[%clk 0:03:01.8]} 3... Qa5 {[%clk
0:03:00.6]} 4. Nf3 {[%clk 0:03:02]} 4... Nf6 {[%clk 0:03:00.9]} 5. d4 {[%clk
0:03:01.8]} 5... Bg4 {[%clk 0:03:00.7]} 6. h3 {[%clk 0:02:59.6]} 6... Bh5 {[%clk
0:03:00.9]} 7. Bc4 {[%clk 0:02:58]} 7... Nc6 {[%clk 0:03:00.5]} 8. d5 {[%clk
0:02:55.7]} 8... O-O-O {[%clk 0:02:56.3]} 9. g4 {[%clk 0:02:38.7]} 9... Bg6
{[%clk 0:02:54.7]} 10. Bd2 {[%clk 0:02:15.8]} 10... Nb4 {[%clk 0:02:52.3]} 11.
Nd4 {[%clk 0:02:04.4]} 11... Qc5 {[%clk 0:02:47]} 12. Qe2 {[%clk 0:01:12.7]}
12... Qxd4 {[%clk 0:02:39.1]} 13. Be3 {[%clk 0:01:12.5]} 13... Nxc2+ {[%clk
0:02:22.4]} 14. Qxc2 {[%clk 0:01:11.5]} 14... Qxc4 {[%clk 0:02:22.7]} 15. Qd2
{[%clk 0:00:58.7]} 15... Nxd5 {[%clk 0:02:14.6]} 16. Qc1 {[%clk 0:00:39.1]}
16... e6 {[%clk 0:02:04]} 17. Bd2 {[%clk 0:00:35]} 0-1

[Event "*** Titled Tuesday Blitz"]
[Site "Chess.com"]
[Date "2021.04.20"]
[Round "4"]
[White "Bad_left_hook"]
[Black "Sharpchess22"]
[Result "0-1"]
[WhiteElo "2628"]
[BlackElo "2806"]
[TimeControl "180+1"]
[EndTime "10:34:52 PDT"]
[Termination "Sharpchess22 won by resignation"]

1. b3 {[%clk 0:03:00]} 1... e5 {[%clk 0:02:59.6]} 2. Bb2 {[%clk 0:03:00.3]} 2...
Nc6 {[%clk 0:02:59.9]} 3. e3 {[%clk 0:02:59.5]} 3... Nf6 {[%clk 0:02:59.5]} 4.
d4 {[%clk 0:02:59.1]} 4... exd4 {[%clk 0:02:58.1]} 5. exd4 {[%clk 0:03:00]} 5...
d5 {[%clk 0:02:57.3]} 6. Nf3 {[%clk 0:02:59.8]} 6... Bb4+ {[%clk 0:02:56.7]} 7.
c3 {[%clk 0:02:59.4]} 7... Bd6 {[%clk 0:02:56.5]} 8. Be2 {[%clk 0:02:59.6]} 8...
O-O {[%clk 0:02:55.9]} 9. O-O {[%clk 0:02:59.8]} 9... Re8 {[%clk 0:02:53.9]} 10.
h3 {[%clk 0:02:56.2]} 10... Bf5 {[%clk 0:02:53.4]} 11. c4 {[%clk 0:02:48.8]}
11... Nb4 {[%clk 0:02:50]} 12. Na3 {[%clk 0:02:48.7]} 12... c6 {[%clk
0:02:49.7]} 13. Re1 {[%clk 0:02:41.3]} 13... Ne4 {[%clk 0:02:43.5]} 14. cxd5
{[%clk 0:02:26.3]} 14... Nxd5 {[%clk 0:02:41.8]} 15. Nc4 {[%clk 0:01:35.3]}
15... Bb4 {[%clk 0:02:40.3]} 16. Bf1 {[%clk 0:01:09.9]} 16... Bxe1 {[%clk
0:02:38.8]} 17. Nxe1 {[%clk 0:01:10.8]} 17... Qh4 {[%clk 0:02:35.1]} 18. Qf3
{[%clk 0:01:07.9]} 18... Bg6 {[%clk 0:02:29.5]} 19. g3 {[%clk 0:01:04.9]} 19...
Qf6 {[%clk 0:02:27.4]} 20. Qxf6 {[%clk 0:01:04.9]} 20... gxf6 {[%clk 0:02:24]}
21. Nd3 {[%clk 0:01:01.4]} 21... Rad8 {[%clk 0:02:22]} 22. Na5 {[%clk
0:00:59.4]} 22... Re7 {[%clk 0:02:20.5]} 23. Ba3 {[%clk 0:00:59]} 23... Red7
{[%clk 0:02:20.8]} 24. h4 {[%clk 0:00:56.5]} 24... Bf5 {[%clk 0:02:16.3]} 25.
Re1 {[%clk 0:00:47.9]} 25... Nd2 {[%clk 0:02:15.4]} 26. Bg2 {[%clk 0:00:44.5]}
26... Bxd3 {[%clk 0:02:14]} 0-1

[Event "*** Titled Tuesday Blitz"]
[Site "Chess.com"]
[Date "2021.04.20"]
[Round "4"]
[White "kingofthenil"]
[Black "draksbg"]
[Result "0-1"]
[WhiteElo "2623"]
[BlackElo "2499"]
[TimeControl "180+1"]
[EndTime "10:34:59 PDT"]
[Termination "draksbg won by checkmate"]

1. e3 {[%clk 0:03:00.9]} 1... g6 {[%clk 0:02:54.4]} 2. Ke2 {[%clk 0:03:00.2]}
2... Bg7 {[%clk 0:02:53.5]} 3. Kd3 {[%clk 0:03:00.6]} 3... c5 {[%clk 0:02:51.7]}
4. Ke4 {[%clk 0:02:54.6]} 4... d5+ {[%clk 0:02:48.4]} 5. Kf3 {[%clk 0:02:53.9]}
5... e5 {[%clk 0:02:49.3]} 6. Ke2 {[%clk 0:02:54.1]} 6... f5 {[%clk 0:02:48.4]}
7. Ke1 {[%clk 0:02:54]} 7... Nf6 {[%clk 0:02:47.7]} 8. b3 {[%clk 0:02:54.2]}
8... O-O {[%clk 0:02:47.3]} 9. Bb2 {[%clk 0:02:54.4]} 9... Nc6 {[%clk
0:02:47.3]} 10. Bb5 {[%clk 0:02:54]} 10... Re8 {[%clk 0:02:45.7]} 11. d3 {[%clk
0:02:51.2]} 11... d4 {[%clk 0:02:44.9]} 12. Bxc6 {[%clk 0:02:20.4]} 12... bxc6
{[%clk 0:02:45.8]} 13. Na3 {[%clk 0:02:08]} 13... e4 {[%clk 0:02:45.7]} 14. Nc4
{[%clk 0:02:05.4]} 14... Nd5 {[%clk 0:02:44.5]} 15. dxe4 {[%clk 0:01:58]} 15...
fxe4 {[%clk 0:02:34.9]} 16. exd4 {[%clk 0:01:31.7]} 16... Qg5 {[%clk 0:02:33.1]}
17. g3 {[%clk 0:01:20.4]} 17... Bg4 {[%clk 0:02:32.4]} 18. Qc1 {[%clk
0:00:32.4]} 18... e3 {[%clk 0:02:32.3]} 19. f4 {[%clk 0:00:32.9]} 19... Nxf4
{[%clk 0:02:32.2]} 20. dxc5 {[%clk 0:00:25.2]} 20... Ng2+ {[%clk 0:02:20.7]} 21.
Kf1 {[%clk 0:00:25.4]} 21... Qf5+ {[%clk 0:02:19.3]} 22. Kxg2 {[%clk 0:00:24.9]}
22... Qf2# {[%clk 0:02:16.2]} 0-1

[Event "*** Titled Tuesday Blitz"]
[Site "Chess.com"]
[Date "2021.04.20"]
[Round "4"]
[White "Leo_C"]
[Black "nikitakhoroshev"]
[Result "0-1"]
[WhiteElo "2425"]
[BlackElo "2624"]
[TimeControl "180+1"]
[EndTime "10:35:04 PDT"]
[Termination "nikitakhoroshev won by resignation"]

1. d4 {[%clk 0:02:02.5]} 1... Nf6 {[%clk 0:02:52.9]} 2. c4 {[%clk 0:02:02.2]}
2... e6 {[%clk 0:02:52.5]} 3. Nc3 {[%clk 0:02:02.1]} 3... d5 {[%clk 0:02:53.1]}
4. cxd5 {[%clk 0:02:01.8]} 4... exd5 {[%clk 0:02:53.4]} 5. Bg5 {[%clk
0:02:02.1]} 5... Bb4 {[%clk 0:02:53.8]} 6. e3 {[%clk 0:02:01.9]} 6... h6 {[%clk
0:02:52.9]} 7. Bh4 {[%clk 0:02:01.1]} 7... g5 {[%clk 0:02:52.9]} 8. Bg3 {[%clk
0:02:01]} 8... Ne4 {[%clk 0:02:53.3]} 9. Bd3 {[%clk 0:02:00.9]} 9... Nxc3 {[%clk
0:02:51.1]} 10. bxc3 {[%clk 0:01:45.4]} 10... Bxc3+ {[%clk 0:02:52]} 11. Kf1
{[%clk 0:01:46]} 11... Bxa1 {[%clk 0:02:51.9]} 12. Qxa1 {[%clk 0:01:46.1]} 12...
b6 {[%clk 0:02:50.2]} 13. h4 {[%clk 0:01:44]} 13... g4 {[%clk 0:02:48.4]} 14.
Ne2 {[%clk 0:01:41.7]} 14... Ba6 {[%clk 0:02:48.6]} 15. Bxa6 {[%clk 0:01:36.6]}
15... Nxa6 {[%clk 0:02:49.5]} 16. Qb1 {[%clk 0:01:37]} 16... Qd7 {[%clk
0:02:48.3]} 17. Nf4 {[%clk 0:01:31.9]} 17... c6 {[%clk 0:02:45.7]} 18. Nd3
{[%clk 0:01:29.9]} 18... f6 {[%clk 0:02:44.6]} 19. h5 {[%clk 0:01:20.2]} 19...
Nc7 {[%clk 0:02:40.7]} 20. Nb4 {[%clk 0:01:17.1]} 20... Rg8 {[%clk 0:02:38.5]}
21. Qc2 {[%clk 0:01:14.6]} 21... Ne6 {[%clk 0:02:33.5]} 22. Qf5 {[%clk
0:01:11.1]} 22... Rg5 {[%clk 0:02:25.2]} 23. Qxf6 {[%clk 0:01:09.1]} 23... Qf7
{[%clk 0:02:25.8]} 24. Qh8+ {[%clk 0:01:06.8]} 24... Qf8 {[%clk 0:02:25.9]} 25.
Qh7 {[%clk 0:00:55]} 25... Qxb4 {[%clk 0:02:24.4]} 26. Qb7 {[%clk 0:00:40.7]}
26... Rd8 {[%clk 0:02:21.6]} 27. Qxc6+ {[%clk 0:00:39.1]} 27... Kf7 {[%clk
0:02:22.2]} 28. f4 {[%clk 0:00:32.1]} 28... gxf3 {[%clk 0:02:21]} 0-1

[Event "*** Titled Tuesday Blitz"]
[Site "Chess.com"]
[Date "2021.04.20"]
[Round "4"]
[White "Kale36"]
[Black "AlexPapasimakopoulos"]
[Result "0-1"]
[WhiteElo "2300"]
[BlackElo "2607"]
[TimeControl "180+1"]
[EndTime "10:35:18 PDT"]
[Termination "AlexPapasimakopoulos won by resignation"]

1. b3 {[%clk 0:03:00.9]} 1... e5 {[%clk 0:02:59.2]} 2. Bb2 {[%clk 0:02:58.3]}
2... d6 {[%clk 0:02:59.3]} 3. e3 {[%clk 0:02:58.4]} 3... g6 {[%clk 0:02:59.6]}
4. d4 {[%clk 0:02:58.4]} 4... Bg7 {[%clk 0:03:00.2]} 5. Nf3 {[%clk 0:02:58.5]}
5... e4 {[%clk 0:02:59.6]} 6. Nfd2 {[%clk 0:02:58.4]} 6... f5 {[%clk 0:02:59.8]}
7. h4 {[%clk 0:02:53.5]} 7... Nf6 {[%clk 0:02:59.4]} 8. c4 {[%clk 0:02:53.4]}
8... O-O {[%clk 0:02:58.3]} 9. d5 {[%clk 0:02:51.7]} 9... c6 {[%clk 0:02:50]}
10. Nc3 {[%clk 0:02:36]} 10... cxd5 {[%clk 0:02:47.6]} 11. cxd5 {[%clk
0:02:36.9]} 11... Nbd7 {[%clk 0:02:43.8]} 12. h5 {[%clk 0:02:23.8]} 12... Nxh5
{[%clk 0:02:42.7]} 13. Rxh5 {[%clk 0:02:23.1]} 13... gxh5 {[%clk 0:02:43.6]} 14.
Qxh5 {[%clk 0:02:23.3]} 14... Nf6 {[%clk 0:02:43.5]} 15. Qh4 {[%clk 0:02:15.4]}
15... Ng4 {[%clk 0:02:43.6]} 16. Qh3 {[%clk 0:02:06.6]} 16... f4 {[%clk
0:02:35.6]} 17. exf4 {[%clk 0:01:12.3]} 17... Rxf4 {[%clk 0:02:32.1]} 18. O-O-O
{[%clk 0:01:07]} 18... Nxf2 {[%clk 0:02:30.3]} 19. Qh2 {[%clk 0:01:06.8]} 19...
Rh4 {[%clk 0:02:28.7]} 20. Qg3 {[%clk 0:01:02.9]} 20... Nxd1 {[%clk 0:02:28.6]}
21. Nxd1 {[%clk 0:01:03]} 21... Rg4 {[%clk 0:02:25.6]} 22. Qe3 {[%clk 0:00:55]}
22... Bxb2+ {[%clk 0:02:23]} 23. Nxb2 {[%clk 0:00:53.5]} 23... Qf6 {[%clk
0:02:23.6]} 24. Nbc4 {[%clk 0:00:34.7]} 24... Bf5 {[%clk 0:02:21.7]} 25. Kb1
{[%clk 0:00:22.3]} 25... Rc8 {[%clk 0:02:17.8]} 26. Qxa7 {[%clk 0:00:20.8]}
26... e3+ {[%clk 0:02:15.3]} 0-1

[Event "*** Titled Tuesday Blitz"]
[Site "Chess.com"]
[Date "2021.04.20"]
[Round "4"]
[White "ChampStan"]
[Black "Genghis_K"]
[Result "0-1"]
[WhiteElo "2094"]
[BlackElo "2922"]
[TimeControl "180+1"]
[EndTime "10:35:21 PDT"]
[Termination "Genghis_K won by resignation"]

1. d4 {[%clk 0:03:00.9]} 1... Nf6 {[%clk 0:03:00]} 2. c4 {[%clk 0:03:00.4]} 2...
c5 {[%clk 0:03:00.5]} 3. d5 {[%clk 0:03:00.2]} 3... e6 {[%clk 0:03:01.3]} 4. Nc3
{[%clk 0:02:59.9]} 4... exd5 {[%clk 0:03:02]} 5. cxd5 {[%clk 0:03:00.2]} 5...
Bd6 {[%clk 0:03:02.7]} 6. e4 {[%clk 0:02:42.1]} 6... O-O {[%clk 0:03:02.5]} 7.
Bd3 {[%clk 0:02:26.6]} 7... Re8 {[%clk 0:03:01.6]} 8. Nge2 {[%clk 0:02:26.8]}
8... Bc7 {[%clk 0:03:00.6]} 9. O-O {[%clk 0:02:23.5]} 9... d6 {[%clk 0:03:01.1]}
10. h3 {[%clk 0:02:14]} 10... Nbd7 {[%clk 0:03:01.1]} 11. Bf4 {[%clk 0:02:12.5]}
11... a6 {[%clk 0:03:00.4]} 12. a4 {[%clk 0:02:10.7]} 12... Rb8 {[%clk 0:03:01]}
13. Bh2 {[%clk 0:02:01.8]} 13... Ne5 {[%clk 0:02:59.4]} 14. Bc2 {[%clk
0:01:29.3]} 14... b5 {[%clk 0:02:58.7]} 15. axb5 {[%clk 0:01:29.2]} 15... axb5
{[%clk 0:02:59.6]} 16. f4 {[%clk 0:01:29.6]} 16... Nc4 {[%clk 0:02:53.4]} 17. b3
{[%clk 0:00:49.9]} 17... Ne3 {[%clk 0:02:52]} 18. Qd3 {[%clk 0:00:49.7]} 18...
Nxc2 {[%clk 0:02:49.2]} 19. Qxc2 {[%clk 0:00:47.5]} 19... b4 {[%clk 0:02:49.4]}
20. Na4 {[%clk 0:00:32.9]} 20... Nxe4 {[%clk 0:02:47.5]} 21. f5 {[%clk
0:00:27.4]} 21... Qg5 {[%clk 0:02:43.5]} 22. Bf4 {[%clk 0:00:18]} 22... Qf6
{[%clk 0:02:37.4]} 23. Bh2 {[%clk 0:00:16.7]} 23... Bxf5 {[%clk 0:02:33.2]} 24.
g4 {[%clk 0:00:15.7]} 24... Nc3 {[%clk 0:02:32.5]} 25. Naxc3 {[%clk 0:00:04.7]}
25... Bxc2 {[%clk 0:02:31.6]} 26. Rxf6 {[%clk 0:00:04.2]} 26... gxf6 {[%clk
0:02:32.5]} 0-1

[Event "*** Titled Tuesday Blitz"]
[Site "Chess.com"]
[Date "2021.04.20"]
[Round "4"]
[White "LawrenceTrent"]
[Black "Zhigalko_Sergei"]
[Result "0-1"]
[WhiteElo "2570"]
[BlackElo "2912"]
[TimeControl "180+1"]
[EndTime "10:35:27 PDT"]
[Termination "Zhigalko_Sergei won by resignation"]

1. e4 {[%clk 0:03:00.9]} 1... c5 {[%clk 0:02:59.5]} 2. Nc3 {[%clk 0:02:59.5]}
2... Nc6 {[%clk 0:02:58.8]} 3. Bb5 {[%clk 0:02:59.4]} 3... Nd4 {[%clk
0:02:57.4]} 4. Nf3 {[%clk 0:02:59.5]} 4... e6 {[%clk 0:02:57.7]} 5. O-O {[%clk
0:02:59.4]} 5... a6 {[%clk 0:02:57.4]} 6. Bd3 {[%clk 0:02:59.5]} 6... Nxf3+
{[%clk 0:02:56.5]} 7. Qxf3 {[%clk 0:02:59.2]} 7... Bd6 {[%clk 0:02:57.4]} 8. Qh3
{[%clk 0:02:51.9]} 8... Qc7 {[%clk 0:02:55]} 9. b3 {[%clk 0:02:48.6]} 9... Ne7
{[%clk 0:02:54.6]} 10. Bb2 {[%clk 0:02:48.3]} 10... Ng6 {[%clk 0:02:54.7]} 11.
g3 {[%clk 0:02:48]} 11... Be5 {[%clk 0:02:54.6]} 12. Rae1 {[%clk 0:02:40.9]}
12... b5 {[%clk 0:02:53.6]} 13. Nd1 {[%clk 0:02:28.9]} 13... Bb7 {[%clk
0:02:46.9]} 14. f4 {[%clk 0:02:26.5]} 14... Bxb2 {[%clk 0:02:39.2]} 15. Nxb2
{[%clk 0:02:26]} 15... O-O {[%clk 0:02:25.9]} 16. f5 {[%clk 0:01:54.6]} 16...
Ne5 {[%clk 0:02:24]} 17. f6 {[%clk 0:01:55]} 17... Rfc8 {[%clk 0:01:58.5]} 18.
Qh4 {[%clk 0:01:44.5]} 18... c4 {[%clk 0:01:50]} 19. Qg5 {[%clk 0:01:44.5]}
19... Qc5+ {[%clk 0:01:41.7]} 20. Kg2 {[%clk 0:01:39.9]} 20... g6 {[%clk
0:01:31.6]} 21. bxc4 {[%clk 0:01:21.9]} 21... Nxd3 {[%clk 0:01:20.8]} 22. Qxc5
{[%clk 0:00:53.4]} 22... Nxe1+ {[%clk 0:01:18.1]} 0-1

[Event "*** Titled Tuesday Blitz"]
[Site "Chess.com"]
[Date "2021.04.20"]
[Round "4"]
[White "aljado"]
[Black "Raud100"]
[Result "0-1"]
[WhiteElo "2066"]
[BlackElo "2383"]
[TimeControl "180+1"]
[EndTime "10:35:40 PDT"]
[Termination "Raud100 won by resignation"]

1. e4 {[%clk 0:03:00.9]} 1... d6 {[%clk 0:02:59.8]} 2. d4 {[%clk 0:02:59.7]}
2... Nf6 {[%clk 0:03:00.7]} 3. Nc3 {[%clk 0:02:58.6]} 3... g6 {[%clk 0:03:01.6]}
4. Nf3 {[%clk 0:02:57.8]} 4... Bg7 {[%clk 0:03:01.1]} 5. Bc4 {[%clk 0:02:57.2]}
5... O-O {[%clk 0:03:01.2]} 6. O-O {[%clk 0:02:55.9]} 6... Nxe4 {[%clk
0:03:01.3]} 7. Bxf7+ {[%clk 0:02:51.5]} 7... Rxf7 {[%clk 0:03:02.2]} 8. Nxe4
{[%clk 0:02:51.2]} 8... h6 {[%clk 0:03:02]} 9. c3 {[%clk 0:02:44.6]} 9... Nc6
{[%clk 0:03:01.2]} 10. Qd3 {[%clk 0:02:44]} 10... Kh7 {[%clk 0:02:51.1]} 11.
Nfg5+ {[%clk 0:02:28.5]} 11... hxg5 {[%clk 0:02:50.4]} 12. Nxg5+ {[%clk
0:02:28.6]} 12... Kg8 {[%clk 0:02:50.8]} 13. Qxg6 {[%clk 0:02:17.9]} 13... Rf6
{[%clk 0:02:42.9]} 14. Qh7+ {[%clk 0:02:02.9]} 14... Kf8 {[%clk 0:02:41.3]} 15.
Qh5 {[%clk 0:02:03.3]} 15... Bf5 {[%clk 0:02:35.1]} 16. Re1 {[%clk 0:01:56.4]}
16... Qe8 {[%clk 0:02:30.7]} 17. Nh7+ {[%clk 0:01:50.6]} 17... Bxh7 {[%clk
0:02:30.2]} 18. Qxh7 {[%clk 0:01:50.2]} 18... Qg6 {[%clk 0:02:30.3]} 19. Qh3
{[%clk 0:01:47.3]} 19... e5 {[%clk 0:02:25.8]} 20. dxe5 {[%clk 0:01:42.3]} 20...
Nxe5 {[%clk 0:02:26.7]} 21. Be3 {[%clk 0:01:38.2]} 21... Kg8 {[%clk 0:02:23]}
22. Bd4 {[%clk 0:01:33.4]} 22... Raf8 {[%clk 0:02:21.9]} 23. Re2 {[%clk
0:01:24.9]} 23... Nf3+ {[%clk 0:02:16.8]} 24. Kf1 {[%clk 0:01:17.6]} 24... Nxd4
{[%clk 0:02:14.9]} 25. cxd4 {[%clk 0:01:17.3]} 25... Rf4 {[%clk 0:01:53.6]} 26.
Rae1 {[%clk 0:01:12.6]} 26... Bxd4 {[%clk 0:01:48.8]} 27. Qb3+ {[%clk
0:01:01.9]} 27... Kh8 {[%clk 0:01:41.2]} 28. Qh3+ {[%clk 0:01:01.2]} 28... Qh7
{[%clk 0:01:38.5]} 29. Qg3 {[%clk 0:00:54.2]} 29... Rxf2+ {[%clk 0:01:35]} 30.
Rxf2 {[%clk 0:00:50.4]} 30... Rxf2+ {[%clk 0:01:34.7]} 31. Qxf2 {[%clk 0:00:49]}
31... Bxf2 {[%clk 0:01:34.6]} 32. Kxf2 {[%clk 0:00:49.6]} 32... Qc2+ {[%clk
0:01:31.3]} 0-1

[Event "*** Titled Tuesday Blitz"]
[Site "Chess.com"]
[Date "2021.04.20"]
[Round "4"]
[White "FredyMatsuura"]
[Black "FMalexhdez"]
[Result "0-1"]
[WhiteElo "2318"]
[BlackElo "2224"]
[TimeControl "180+1"]
[EndTime "10:35:47 PDT"]
[Termination "FMalexhdez won by resignation"]

1. d4 {[%clk 0:03:00.9]} 1... Nf6 {[%clk 0:02:58.2]} 2. c4 {[%clk 0:03:00.8]}
2... e6 {[%clk 0:02:58.4]} 3. Nf3 {[%clk 0:03:01.2]} 3... b6 {[%clk 0:02:57.3]}
4. g3 {[%clk 0:03:01.1]} 4... Bb7 {[%clk 0:02:57.7]} 5. Bg2 {[%clk 0:03:00.9]}
5... c5 {[%clk 0:02:58.3]} 6. d5 {[%clk 0:03:00.3]} 6... exd5 {[%clk 0:02:58.8]}
7. Nh4 {[%clk 0:03:00.1]} 7... g6 {[%clk 0:02:59]} 8. cxd5 {[%clk 0:02:59.5]}
8... Bg7 {[%clk 0:02:59.2]} 9. Nc3 {[%clk 0:02:59.6]} 9... d6 {[%clk 0:02:59]}
10. O-O {[%clk 0:02:59.7]} 10... O-O {[%clk 0:02:57.6]} 11. e4 {[%clk
0:02:59.5]} 11... a6 {[%clk 0:02:54.6]} 12. a4 {[%clk 0:02:58.6]} 12... Nbd7
{[%clk 0:02:50.3]} 13. f4 {[%clk 0:02:56.4]} 13... Re8 {[%clk 0:02:29.5]} 14.
Re1 {[%clk 0:02:55.7]} 14... c4 {[%clk 0:02:17.8]} 15. Kh1 {[%clk 0:02:35]}
15... Nc5 {[%clk 0:02:06.2]} 16. e5 {[%clk 0:02:29.8]} 16... Nd3 {[%clk
0:02:05.8]} 17. Re2 {[%clk 0:02:23]} 17... dxe5 {[%clk 0:02:05.5]} 18. fxe5
{[%clk 0:02:22.9]} 18... Rxe5 {[%clk 0:02:02.1]} 19. Bf4 {[%clk 0:02:06.3]}
19... Ng4 {[%clk 0:01:39.5]} 20. Qd2 {[%clk 0:01:54.2]} 20... Rxe2 {[%clk
0:01:36.4]} 21. Qxe2 {[%clk 0:01:54.1]} 21... g5 {[%clk 0:01:15.2]} 22. Nf5
{[%clk 0:01:50.4]} 22... gxf4 {[%clk 0:01:13.6]} 23. Nxg7 {[%clk 0:01:50.4]}
23... Ngf2+ {[%clk 0:01:09.1]} 24. Kg1 {[%clk 0:01:49.8]} 24... Kxg7 {[%clk
0:01:09.2]} 25. Qh5 {[%clk 0:01:47.1]} 25... Qf6 {[%clk 0:01:02.8]} 26. Rf1
{[%clk 0:01:40.1]} 26... Qd4 {[%clk 0:00:57]} 27. h4 {[%clk 0:01:20.6]} 27...
Ne4+ {[%clk 0:00:45.4]} 28. Kh2 {[%clk 0:01:19.8]} 28... fxg3+ {[%clk
0:00:44.9]} 0-1